[Event "GER-ch Youth-U12 2022"]
[Site "Willingen"]
[Date "2022.06.08"]
[Round "5.12"]
[White "Aniol, Nico"]
[Black "Aweh, Mads"]
[Result "1-0"]
[ECO "A07"]
[WhiteElo "1494"]
[BlackElo "1438"]
[Annotator "NA RC COMBH"]
[PlyCount "117"]
[EventDate "2022.06.05"]
[EventType "swiss"]
[EventRounds "9"]
[EventCountry "GER"]
[SourceTitle "playchess.com"]
[Source "ChessBase"]
[SourceQuality "1"]
[TimeControl "40/4500+30:900+30"]

1. Nf3 {[%emt 0:00:00]} d5 {[%emt 0:00:00]} 2. g3 {[%emt 0:00:00]} Nf6 {[%emt 0:00:00]} 3. Bg2 {[%emt 0:00:00]} Bf5 {[%emt 0:00:00]} 4. O-O {[%emt 0:00:00]} e6 {[%emt 0:00:00]} 5. d3 {[%emt 0:00:00]} Bd6 {[%emt 0:00:00]} 6. Nbd2 {[%emt 0:00:00]} O-O {[%emt 0:00:00]} 7. Nh4 {[%emt 0:00:00]} c6 {[%emt 0:02:27]} 8. Nxf5 {[%emt 0:01:33]} exf5 {[%emt 0:00:18]} 9. Nf3 {[%emt 0:01:44]} Re8 {[%emt 0:03:02]} 10. e3 {[%emt 0:03:28]} Nbd7 {[%emt 0:03:18]} 11. Nd4 {[%emt 0:02:17]} g6 {[%emt 0:02:28]} 12. Rb1 {[%emt 0:02:37]} Nc5 {[%emt 0:03:21]} 13. b3 {[%emt 0:02:56]} Ne6 {[%emt 0:02:30]} 14. Bb2 {[%emt 0:02:02]} Nxd4 {[%emt 0:00:57]} 15. Bxd4 {[%emt 0:00:06]} Be5 {[%emt 0:00:42]} 16. Bxe5 {[%emt 0:04:37]} Rxe5 {[%emt 0:00:10]} 17. Qd2 {[%emt 0:00:26]} Qe7 {[%emt 0:01:51]} 18. Rfe1 {[%emt 0:01:52]} Re8 {[%emt 0:03:09]} 19. Kf1 {[%emt 0:01:33]} Rd8 {[%emt 0:09:32]} 20. c3 {[%emt 0:01:56]} Re6 {[%emt 0:03:01]} 21. b4 {[%emt 0:05:47]} b5 {[%emt 0:02:05]} 22. a4 {[%emt 0:02:02]} a6 {[%emt 0:05:16]} 23. Ra1 {[%emt 0:01:36]} Qb7 {[%emt 0:01:22]} 24. Ra2 {[%emt 0:01:43]} Ra8 {[%emt 0:01:59]} 25. Rea1 {[%emt 0:01:32]} Ree8 {[%emt 0:01:17]} 26. Ra3 {[%emt 0:01:00]} Ra7 {[%emt 0:01:56]} 27. axb5 {[%emt 0:00:13]} cxb5 {[%emt 0:00:15]} 28. c4 {[%emt 0:02:50]} bxc4 {[%emt 0:02:01]} 29. dxc4 {[%emt 0:00:39]} Ne4 {[%emt 0:01:02]} 30. Bxe4 {[%emt 0:00:53]} Rxe4 {[%emt 0:03:24]} 31. Qxd5 {[%emt 0:01:26]} Qxb4 {[%emt 0:00:57]} 32. Ra4 {[%emt 0:00:55]} Qb6 {[%emt 0:03:49]} 33. Kg1 {[%emt 0:01:01]} Qc7 {[%emt 0:01:31]} 34. h4 {[%emt 0:02:49]} Re5 {[%emt 0:00:57]} 35. Qd4 {[%emt 0:00:44]} Re4 {[%emt 0:01:25]} 36. Qd5 {[%emt 0:00:47]} Re5 {[%emt 0:00:32]} 37. Qd3 {[%emt 0:00:04]} Rc5 {[%emt 0:00:22]} 38. Qd4 {[%emt 0:00:30]} a5 {[%emt 0:02:30]} 39. h5 {[%emt 0:02:47]} gxh5 {[%emt 0:03:53]} 40. Qh4 {[%emt 0:00:43]} Qc6 {[%emt 0:02:46]} 41. Qxh5 {[%emt 0:18:07]} Qg6 {[%emt 0:15:57]} 42. Qh4 {[%emt 0:00:17]} Qc6 {[%emt 0:02:42]} 43. Qg5+ {[%emt 0:02:33]} Kf8 {[%emt 0:00:56]} 44. Qf4 {[%emt 0:01:15]} Rc7 {[%emt 0:00:52]} 45. Rxa5 {[%emt 0:00:36]} Rxc4 {[%emt 0:00:41]} 46. Qxf5 {[%emt 0:02:08]} Qh6 {[%emt 0:02:05]} 47. Qh5 {[%emt 0:03:03]} Rc1+ {[%emt 0:02:53]} 48. Rxc1 {[%emt 0:00:18]} Rxc1+ {[%emt 0:00:01]} 49. Kg2 {[%emt 0:00:07]} Qc6+ {[%emt 0:00:58]} 50. Qd5 {[%emt 0:00:02]} Qf6 {[%emt 0:01:31]} 51. Qd3 {[%emt 0:02:29]} Qc6+ {[%emt 0:01:36]} 52. Qd5 {[%emt 0:00:12]} Qf6 {[%emt 0:02:17]} 53. Qe4 {[%emt 0:01:57]} Qb6 {[%emt 0:03:06]} 54. Ra8+ {[%emt 0:02:29]} Kg7 {[%emt 0:00:10]} 55. Re8 {[%emt 0:01:23]} Qh6 {[%emt 0:01:32]} 56. Qe5+ {[%emt 0:00:15]} f6 {[%emt 0:02:16]} 57. Qe7+ {[%emt 0:00:19]} Kg6 {[%emt 0:00:07]} 58. Rg8+ {[%emt 0:00:10]} Kh5 {[%emt 0:00:11]} 59. Qf7+ {[%emt 0:00:30]} 1-0

[Event "GER-ch Youth-U12 2022"]
[Site "Willingen"]
[Date "2022.06.08"]
[Round "5.13"]
[White "Gulamzada, Elmir"]
[Black "Schuricht, Emil Frederick"]
[Result "0-1"]
[ECO "B13"]
[WhiteElo "1539"]
[BlackElo "1641"]
[Annotator "NA RC COMBH"]
[PlyCount "76"]
[EventDate "2022.06.05"]
[EventType "swiss"]
[EventRounds "9"]
[EventCountry "GER"]
[SourceTitle "playchess.com"]
[Source "ChessBase"]
[SourceQuality "1"]
[TimeControl "40/4500+30:900+30"]

1. e4 {[%emt 0:00:00]} c6 {[%emt 0:00:00]} 2. d4 {[%emt 0:00:00]} d5 {[%emt 0:00:00]} 3. exd5 {[%emt 0:00:00]} cxd5 {[%emt 0:00:00]} 4. Bd3 {[%emt 0:00:00]} Nc6 {[%emt 0:00:00]} 5. c3 {[%emt 0:00:00]} Nf6 {[%emt 0:00:00]} 6. Bf4 {[%emt 0:00:00]} Bg4 {[%emt 0:00:00]} 7. Qb3 {[%emt 0:00:00]} Qc8 {[%emt 0:00:00]} 8. Nd2 {[%emt 0:00:00]} e6 {[%emt 0:00:00]} 9. Ngf3 {[%emt 0:07:56]} Be7 {[%emt 0:00:00]} 10. h3 {[%emt 0:01:25]} Bh5 {[%emt 0:00:00]} 11. O-O {[%emt 0:10:55]} O-O {[%emt 0:00:00]} 12. Rfe1 {[%emt 0:05:05]} Bg6 {[%emt 0:00:00]} 13. Bxg6 {[%emt 0:01:48]} hxg6 {[%emt 0:00:00]} 14. Ne5 {[%emt 0:12:52]} Nxe5 {[%emt 0:00:00]} 15. Bxe5 {[%emt 0:01:25]} Nd7 {[%emt 0:04:14]} 16. Bf4 {[%emt 0:02:19]} Qc6 {[%emt 0:07:53]} 17. c4 {[%emt 0:03:25]} dxc4 {[%emt 0:14:58]} 18. Nxc4 {[%emt 0:00:09]} Qd5 {[%emt 0:01:58]} 19. Red1 {[%emt 0:06:20]} Bf6 {[%emt 0:07:54]} 20. Nd6 {[%emt 0:03:34]} Nb6 {[%emt 0:17:09]} 21. Bg3 {[%emt 0:05:45]} Qc6 {[%emt 0:00:23]} 22. Rac1 {[%emt 0:01:06]} Qd7 {[%emt 0:00:07]} 23. Ne4 {[%emt 0:04:00]} Nd5 {[%emt 0:00:58]} 24. Nxf6+ {[%emt 0:00:00]} gxf6 {[%emt 0:00:21]} 25. Rc5 {[%emt 0:03:40]} f5 {[%emt 0:04:56]} 26. Qb5 {[%emt 0:04:58]} Qxb5 {[%emt 0:01:17]} 27. Rxb5 {[%emt 0:00:07]} f4 {[%emt 0:01:11]} 28. Bh2 {[%emt 0:00:13]} b6 {[%emt 0:00:58]} 29. g3 {[%emt 0:01:20]} g5 {[%emt 0:01:48]} 30. h4 {[%emt 0:00:38]} gxh4 {[%emt 0:02:58]} 31. gxh4 {[%emt 0:01:11]} Kg7 {[%emt 0:01:49]} 32. Kg2 {[%emt 0:00:17]} Rh8 {[%emt 0:03:13]} 33. Kh3 {[%emt 0:03:18]} Kf6 {[%emt 0:01:05]} 34. Rg1 {[%emt 0:03:09]} Rh5 {[%emt 0:04:32]} 35. Kg4 {[%emt 0:01:01]} Rah8 {[%emt 0:00:47]} 36. Kf3 {[%emt 0:01:18]} Rxh4 {[%emt 0:00:38]} 37. Kg2 {[%emt 0:00:10]} Rxh2+ {[%emt 0:00:08]} 38. Kf3 {[%emt 0:00:14]} Kf5 {[%emt 0:00:34]} 0-1

[Event "GER-ch Youth-U12 2022"]
[Site "Willingen"]
[Date "2022.06.08"]
[Round "5.14"]
[White "Polzin, Gustav"]
[Black "Mohammadzadeh, Daris"]
[Result "1-0"]
[ECO "B35"]
[WhiteElo "1643"]
[BlackElo "1371"]
[Annotator "NA RC COMBH"]
[PlyCount "103"]
[EventDate "2022.06.05"]
[EventType "swiss"]
[EventRounds "9"]
[EventCountry "GER"]
[SourceTitle "playchess.com"]
[Source "ChessBase"]
[SourceQuality "1"]
[TimeControl "40/4500+30:900+30"]

1. e4 {[%emt 0:00:00]} c5 {[%emt 0:00:00]} 2. Nf3 {[%emt 0:00:00]} g6 {[%emt 0:00:00]} 3. d4 {[%emt 0:00:00]} cxd4 {[%emt 0:00:00]} 4. Nxd4 {[%emt 0:00:00]} Bg7 {[%emt 0:00:00]} 5. Nc3 {[%emt 0:00:00]} Nc6 {[%emt 0:00:00]} 6. Be3 {[%emt 0:00:00]} Nf6 {[%emt 0:00:00]} 7. Bc4 {[%emt 0:00:00]} Qa5 {[%emt 0:00:00]} 8. O-O {[%emt 0:00:00]} O-O {[%emt 0:00:00]} 9. Bb3 {[%emt 0:00:00]} d6 {[%emt 0:00:00]} 10. f3 {[%emt 0:00:00]} Bd7 {[%emt 0:00:00]} 11. Qd2 {[%emt 0:00:00]} Rfc8 {[%emt 0:00:40]} 12. Rad1 {[%emt 0:01:20]} Ne5 {[%emt 0:05:52]} 13. Bh6 {[%emt 0:04:16]} Nc4 {[%emt 0:01:45]} 14. Bxc4 {[%emt 0:00:19]} Rxc4 {[%emt 0:00:14]} 15. Nd5 {[%emt 0:06:54]} Qd8 {[%emt 0:15:07]} 16. Bxg7 {[%emt 0:00:36]} Kxg7 {[%emt 0:14:31]} 17. Nxf6 {[%emt 0:02:40]} exf6 {[%emt 0:02:37]} 18. b3 {[%emt 0:03:31]} Rc5 {[%emt 0:01:44]} 19. c4 {[%emt 0:01:22]} Ra5 {[%emt 0:03:13]} 20. Ne2 {[%emt 0:03:37]} Be6 {[%emt 0:02:54]} 21. Nc3 {[%emt 0:03:35]} Qb6+ {[%emt 0:06:11]} 22. Qd4 {[%emt 0:01:08]} Qc5 {[%emt 0:03:10]} 23. Rf2 {[%emt 0:04:36]} Rd8 {[%emt 0:04:55]} 24. Qxc5 {[%emt 0:01:17]} Rxc5 {[%emt 0:00:06]} 25. Rfd2 {[%emt 0:04:44]} Rc6 {[%emt 0:08:57]} 26. Nb5 {[%emt 0:01:01]} a6 {[%emt 0:00:49]} 27. Nd4 {[%emt 0:00:29]} Rb6 {[%emt 0:01:09]} 28. Nxe6+ {[%emt 0:00:18]} fxe6 {[%emt 0:00:02]} 29. c5 {[%emt 0:00:02]} Rc6 {[%emt 0:00:08]} 30. cxd6 {[%emt 0:02:13]} e5 {[%emt 0:02:10]} 31. b4 {[%emt 0:02:06]} Kf7 {[%emt 0:03:53]} 32. b5 {[%emt 0:05:58]} axb5 {[%emt 0:00:18]} 33. Rd5 {[%emt 0:00:30]} Ke6 {[%emt 0:00:30]} 34. Rxb5 {[%emt 0:01:31]} b6 {[%emt 0:00:21]} 35. h4 {[%emt 0:02:36]} Rdxd6 {[%emt 0:00:32]} 36. Rdd5 {[%emt 0:00:19]} Kd7 {[%emt 0:07:51]} 37. Kh2 {[%emt 0:01:30]} Kc7 {[%emt 0:00:43]} 38. Kh3 {[%emt 0:01:29]} Rxd5 {[%emt 0:01:04]} 39. Rxd5 {[%emt 0:00:28]} Rc2 {[%emt 0:01:37]} 40. g4 {[%emt 0:22:24]} Rxa2 {[%emt 0:00:06]} 41. g5 {[%emt 0:17:30]} Ra5 {[%emt 0:00:00]} 42. gxf6 {[%emt 0:00:00]} Rxd5 {[%emt 0:00:00]} 43. exd5 {[%emt 0:00:00]} Kd7 {[%emt 0:00:00]} 44. Kg4 {[%emt 0:00:00]} b5 {[%emt 0:00:00]} 45. Kg5 {[%emt 0:00:00]} b4 {[%emt 0:00:00]} 46. Kh6 {[%emt 0:00:00]} b3 {[%emt 0:00:00]} 47. f7 {[%emt 0:00:00]} b2 {[%emt 0:00:00]} 48. f8=Q {[%emt 0:00:45]} b1=Q {[%emt 0:00:00]} 49. Qf7+ {[%emt 0:00:00]} Kd8 {[%emt 0:01:20]} 50. d6 {[%emt 0:00:00]} Qc1+ {[%emt 0:01:48]} 51. Kxh7 {[%emt 0:00:00]} Qc6 {[%emt 0:00:13]} 52. Qc7+ {[%emt 0:00:00]} 1-0

[Event "GER-ch Youth-U12 2022"]
[Site "Willingen"]
[Date "2022.06.08"]
[Round "5.15"]
[White "Kullmann, Max"]
[Black "Seth, Aakrit"]
[Result "1/2-1/2"]
[ECO "D58"]
[WhiteElo "1442"]
[BlackElo "1435"]
[Annotator "NA RC COMBH"]
[PlyCount "56"]
[EventDate "2022.06.05"]
[EventType "swiss"]
[EventRounds "9"]
[EventCountry "GER"]
[SourceTitle "playchess.com"]
[Source "ChessBase"]
[SourceQuality "1"]
[TimeControl "40/4500+30:900+30"]

1. d4 {[%emt 0:00:00]} d5 {[%emt 0:00:00]} 2. c4 {[%emt 0:00:00]} e6 {[%emt 0:00:00]} 3. Nc3 {[%emt 0:00:00]} Nf6 {[%emt 0:00:00]} 4. Bg5 {[%emt 0:00:00]} Be7 {[%emt 0:00:00]} 5. cxd5 {[%emt 0:00:00]} exd5 {[%emt 0:00:00]} 6. e3 {[%emt 0:00:00]} O-O {[%emt 0:00:00]} 7. Nf3 {[%emt 0:00:00]} Nbd7 {[%emt 0:00:00]} 8. Bd3 {[%emt 0:00:00]} b6 {[%emt 0:00:00]} 9. O-O {[%emt 0:00:00]} Bb7 {[%emt 0:00:00]} 10. Qc2 {[%emt 0:00:00]} h6 {[%emt 0:00:00]} 11. Bh4 {[%emt 0:00:00]} c5 {[%emt 0:00:00]} 12. Rac1 {[%emt 0:00:00]} Rc8 {[%emt 0:00:00]} 13. Rfd1 {[%emt 0:00:00]} Re8 {[%emt 0:00:00]} 14. Qe2 {[%emt 0:00:24]} c4 {[%emt 0:00:00]} 15. Bb1 {[%emt 0:14:46]} a6 {[%emt 0:00:00]} 16. Qc2 {[%emt 0:10:22]} b5 {[%emt 0:04:05]} 17. Ne5 {[%emt 0:08:32]} g5 {[%emt 0:23:32]} 18. Bg3 {[%emt 0:06:45]} Rf8 {[%emt 0:04:05]} 19. Ng4 {[%emt 0:12:12]} Kg7 {[%emt 0:04:58]} 20. Nxf6 {[%emt 0:16:06]} Nxf6 {[%emt 0:00:17]} 21. Be5 {[%emt 0:00:21]} Rh8 {[%emt 0:00:27]} 22. Qf5 {[%emt 0:03:07]} Rc6 {[%emt 0:01:50]} 23. h3 {[%emt 0:03:23]} Re6 {[%emt 0:15:24]} 24. e4 {[%emt 0:05:07]} dxe4 {[%emt 0:13:34]} 25. d5 {[%emt 0:00:51]} Rb6 {[%emt 0:03:01]} 26. Nxe4 {[%emt 0:00:55]} Bc8 {[%emt 0:08:09]} 27. Qf3 {[%emt 0:00:53]} Bb7 {[%emt 0:02:23]} 28. d6 {[%emt 0:00:55]} Bxe4 {[%emt 0:00:17]} 1/2-1/2

[Event "GER-ch Youth-U12 2022"]
[Site "Willingen"]
[Date "2022.06.08"]
[Round "5.16"]
[White "Albrecht, Neil"]
[Black "Noennig, Jakob"]
[Result "1-0"]
[ECO "C54"]
[WhiteElo "1376"]
[BlackElo "1556"]
[Annotator "NA RC COMBH"]
[PlyCount "133"]
[EventDate "2022.06.05"]
[EventType "swiss"]
[EventRounds "9"]
[EventCountry "GER"]
[SourceTitle "playchess.com"]
[Source "ChessBase"]
[SourceQuality "1"]
[TimeControl "40/4500+30:900+30"]

1. e4 {[%emt 0:00:00]} e5 {[%emt 0:00:00]} 2. Nf3 {[%emt 0:00:00]} Nc6 {[%emt 0:00:00]} 3. Bc4 {[%emt 0:00:00]} Bc5 {[%emt 0:00:00]} 4. c3 {[%emt 0:00:00]} Nf6 {[%emt 0:00:00]} 5. d4 {[%emt 0:00:00]} exd4 {[%emt 0:00:00]} 6. e5 {[%emt 0:00:00]} d5 {[%emt 0:00:00]} 7. Bb5 {[%emt 0:00:00]} Ne4 {[%emt 0:00:00]} 8. cxd4 {[%emt 0:00:00]} Bb4+ {[%emt 0:00:00]} 9. Nbd2 {[%emt 0:00:00]} Bd7 {[%emt 0:00:00]} 10. Bxc6 {[%emt 0:00:00]} Bxc6 {[%emt 0:00:00]} 11. O-O {[%emt 0:00:03]} O-O {[%emt 0:00:00]} 12. a3 {[%emt 0:00:52]} Ba5 {[%emt 0:00:00]} 13. Qc2 {[%emt 0:02:28]} Re8 {[%emt 0:05:21]} 14. b4 {[%emt 0:01:28]} Bb6 {[%emt 0:01:51]} 15. a4 {[%emt 0:02:24]} a6 {[%emt 0:02:37]} 16. Bb2 {[%emt 0:04:19]} Re6 {[%emt 0:04:42]} 17. Rfd1 {[%emt 0:14:30]} Rg6 {[%emt 0:04:40]} 18. b5 {[%emt 0:03:18]} Nxd2 {[%emt 0:03:13]} 19. Qxd2 {[%emt 0:00:42]} axb5 {[%emt 0:00:26]} 20. a5 {[%emt 0:00:12]} Ba7 {[%emt 0:01:23]} 21. Rdc1 {[%emt 0:00:49]} Qc8 {[%emt 0:03:23]} 22. Ra3 {[%emt 0:00:34]} Bd7 {[%emt 0:06:21]} 23. Nh4 {[%emt 0:06:38]} Rh6 {[%emt 0:03:59]} 24. g3 {[%emt 0:01:30]} c6 {[%emt 0:03:05]} 25. Bc3 {[%emt 0:05:22]} Bh3 {[%emt 0:04:16]} 26. Qe2 {[%emt 0:01:10]} Qe6 {[%emt 0:04:44]} 27. Bd2 {[%emt 0:04:04]} Bg4 {[%emt 0:08:43]} 28. Qd3 {[%emt 0:01:59]} Rh5 {[%emt 0:01:03]} 29. Ng2 {[%emt 0:02:27]} g5 {[%emt 0:04:33]} 30. h4 {[%emt 0:04:08]} Bf5 {[%emt 0:15:08]} 31. Qf3 {[%emt 0:06:49]} Bg4 {[%emt 0:00:26]} 32. Qc3 {[%emt 0:02:19]} Bh3 {[%emt 0:04:53]} 33. Bxg5 {[%emt 0:00:56]} Bxg2 {[%emt 0:00:08]} 34. Kxg2 {[%emt 0:00:06]} Qg4 {[%emt 0:00:36]} 35. a6 {[%emt 0:04:33]} b4 {[%emt 0:06:14]} 36. Qxb4 {[%emt 0:00:58]} b5 {[%emt 0:00:13]} 37. Qe7 {[%emt 0:00:46]} Bxd4 {[%emt 0:01:02]} 38. Rxc6 {[%emt 0:00:32]} Qe4+ {[%emt 0:00:50]} 39. Rf3 {[%emt 0:00:27]} Rf8 {[%emt 0:00:28]} 40. Bf6 {[%emt 0:00:50]} Ra8 {[%emt 0:00:29]} 41. Qb7 {[%emt 0:18:25]} Rf8 {[%emt 0:00:00]} 42. Rc8 {[%emt 0:00:00]} Bc5 {[%emt 0:00:00]} 43. Rxc5 {[%emt 0:00:00]} Rf5 {[%emt 0:00:00]} 44. Qxd5 {[%emt 0:00:00]} Qxf3+ {[%emt 0:00:00]} 45. Qxf3 {[%emt 0:00:00]} Rxf3 {[%emt 0:00:00]} 46. Kxf3 {[%emt 0:00:00]} h5 {[%emt 0:00:00]} 47. Rxb5 {[%emt 0:00:00]} Ra8 {[%emt 0:00:00]} 48. Ra5 {[%emt 0:00:00]} Ra7 {[%emt 0:00:00]} 49. Bd8 {[%emt 0:00:00]} Kf8 {[%emt 0:00:00]} 50. Bb6 {[%emt 0:00:00]} Ra8 {[%emt 0:00:00]} 51. a7 {[%emt 0:00:00]} Ke7 {[%emt 0:00:00]} 52. Bc7 {[%emt 0:00:00]} Kd7 {[%emt 0:00:00]} 53. Bb8 {[%emt 0:00:00]} Kc6 {[%emt 0:00:00]} 54. Ra4 {[%emt 0:00:00]} Kb5 {[%emt 0:00:00]} 55. Rf4 {[%emt 0:00:00]} Kc5 {[%emt 0:00:00]} 56. Rxf7 {[%emt 0:00:00]} Kd5 {[%emt 0:00:00]} 57. Rh7 {[%emt 0:00:00]} Ke6 {[%emt 0:00:00]} 58. Rxh5 {[%emt 0:00:00]} Kf7 {[%emt 0:00:00]} 59. Kf4 {[%emt 0:00:00]} Ke6 {[%emt 0:00:00]} 60. Rh6+ {[%emt 0:00:00]} Kd5 {[%emt 0:00:00]} 61. e6 {[%emt 0:00:00]} Kc6 {[%emt 0:00:12]} 62. Rh7 {[%emt 0:00:00]} Kd5 {[%emt 0:05:50]} 63. e7 {[%emt 0:00:00]} Kc5 {[%emt 0:01:03]} 64. e8=Q {[%emt 0:00:00]} Rxb8 {[%emt 0:00:08]} 65. axb8=Q {[%emt 0:00:14]} Kd5 {[%emt 0:00:08]} 66. Rd7+ {[%emt 0:00:00]} Kc6 {[%emt 0:00:44]} 67. Qec8# {[%emt 0:00:00]} 1-0

[Event "GER-ch Youth-U12 2022"]
[Site "Willingen"]
[Date "2022.06.08"]
[Round "5.17"]
[White "Mandalka, Justus"]
[Black "Radeke, Timothy"]
[Result "1-0"]
[ECO "A58"]
[WhiteElo "1402"]
[BlackElo "1129"]
[Annotator "NA RC COMBH"]
[PlyCount "95"]
[EventDate "2022.06.05"]
[EventType "swiss"]
[EventRounds "9"]
[EventCountry "GER"]
[SourceTitle "playchess.com"]
[Source "ChessBase"]
[SourceQuality "1"]
[TimeControl "40/4500+30:900+30"]

1. d4 {[%emt 0:00:00]} Nf6 {[%emt 0:00:00]} 2. c4 {[%emt 0:00:00]} c5 {[%emt 0:00:00]} 3. d5 {[%emt 0:00:00]} b5 {[%emt 0:00:00]} 4. cxb5 {[%emt 0:00:00]} a6 {[%emt 0:00:00]} 5. Nc3 {[%emt 0:00:00]} axb5 {[%emt 0:00:00]} 6. Nxb5 {[%emt 0:00:00]} Ba6 {[%emt 0:00:00]} 7. Nc3 {[%emt 0:00:00]} g6 {[%emt 0:00:00]} 8. g3 {[%emt 0:00:00]} d6 {[%emt 0:00:00]} 9. Bg2 {[%emt 0:00:00]} Bg7 {[%emt 0:00:00]} 10. Nf3 {[%emt 0:00:00]} O-O {[%emt 0:00:00]} 11. O-O {[%emt 0:00:00]} Nbd7 {[%emt 0:00:00]} 12. Qc2 {[%emt 0:00:00]} Qc7 {[%emt 0:00:00]} 13. Re1 {[%emt 0:00:00]} Rfb8 {[%emt 0:00:00]} 14. e4 {[%emt 0:00:50]} Ng4 {[%emt 0:00:00]} 15. h3 {[%emt 0:01:52]} Nge5 {[%emt 0:00:00]} 16. Nxe5 {[%emt 0:01:53]} Nxe5 {[%emt 0:00:00]} 17. Bf4 {[%emt 0:13:46]} Nd3 {[%emt 0:00:00]} 18. Reb1 {[%emt 0:00:09]} Nxf4 {[%emt 0:00:00]} 19. gxf4 {[%emt 0:00:10]} Bh6 {[%emt 0:00:21]} 20. Qd2 {[%emt 0:04:23]} Rb7 {[%emt 0:04:49]} 21. Bf1 {[%emt 0:14:06]} Bxf1 {[%emt 0:02:01]} 22. Kxf1 {[%emt 0:02:56]} Qd7 {[%emt 0:00:58]} 23. Kg2 {[%emt 0:00:25]} f5 {[%emt 0:00:35]} 24. f3 {[%emt 0:01:45]} Rf8 {[%emt 0:00:42]} 25. Rf1 {[%emt 0:00:24]} fxe4 {[%emt 0:01:17]} 26. fxe4 {[%emt 0:00:09]} e5 {[%emt 0:00:55]} 27. dxe6 {[%emt 0:00:17]} Qxe6 {[%emt 0:00:07]} 28. Rf2 {[%emt 0:01:30]} Qf6 {[%emt 0:04:41]} 29. Qd5+ {[%emt 0:04:55]} Rbf7 {[%emt 0:00:05]} 30. Raf1 {[%emt 0:00:56]} Bg7 {[%emt 0:04:51]} 31. a4 {[%emt 0:04:18]} Kh8 {[%emt 0:00:50]} 32. Nb5 {[%emt 0:04:14]} Rd7 {[%emt 0:03:58]} 33. e5 {[%emt 0:01:25]} Qf5 {[%emt 0:01:15]} 34. Nxd6 {[%emt 0:00:45]} Qh5 {[%emt 0:01:32]} 35. Qe6 {[%emt 0:02:54]} Rfd8 {[%emt 0:02:04]} 36. Nf7+ {[%emt 0:00:35]} Rxf7 {[%emt 0:00:05]} 37. Qxf7 {[%emt 0:00:10]} Qh4 {[%emt 0:01:22]} 38. a5 {[%emt 0:01:54]} h6 {[%emt 0:00:08]} 39. Qxg6 {[%emt 0:00:28]} c4 {[%emt 0:00:24]} 40. a6 {[%emt 0:01:23]} Rd3 {[%emt 0:00:22]} 41. Qg4 {[%emt 0:15:24]} Qd8 {[%emt 0:15:20]} 42. Qe6 {[%emt 0:02:02]} Qh4 {[%emt 0:03:34]} 43. Rf3 {[%emt 0:00:50]} Rd2+ {[%emt 0:01:02]} 44. R1f2 {[%emt 0:00:08]} Qd8 {[%emt 0:01:21]} 45. Rxd2 {[%emt 0:00:23]} Qxd2+ {[%emt 0:00:14]} 46. Rf2 {[%emt 0:00:07]} Qe3 {[%emt 0:00:16]} 47. Qc8+ {[%emt 0:00:45]} Kh7 {[%emt 0:00:06]} 48. Qb7 {[%emt 0:00:17]} 1-0

[Event "GER-ch Youth-U12 2022"]
[Site "Willingen"]
[Date "2022.06.08"]
[Round "5.18"]
[White "Li, Luxuan"]
[Black "Pimenov, Danil"]
[Result "0-1"]
[ECO "B31"]
[WhiteElo "1235"]
[BlackElo "1337"]
[Annotator "NA RC COMBH"]
[PlyCount "64"]
[EventDate "2022.06.05"]
[EventType "swiss"]
[EventRounds "9"]
[EventCountry "GER"]
[SourceTitle "playchess.com"]
[Source "ChessBase"]
[SourceQuality "1"]
[TimeControl "40/4500+30:900+30"]

1. e4 {[%emt 0:00:00]} c5 {[%emt 0:00:00]} 2. Nf3 {[%emt 0:00:00]} Nc6 {[%emt 0:00:00]} 3. Bb5 {[%emt 0:00:00]} g6 {[%emt 0:00:00]} 4. Bxc6 {[%emt 0:00:00]} dxc6 {[%emt 0:00:00]} 5. h3 {[%emt 0:00:00]} Bg7 {[%emt 0:00:00]} 6. d3 {[%emt 0:00:00]} Nf6 {[%emt 0:00:00]} 7. Nbd2 {[%emt 0:00:00]} O-O {[%emt 0:00:00]} 8. O-O {[%emt 0:00:00]} Qc7 {[%emt 0:00:00]} 9. a4 {[%emt 0:00:00]} Rd8 {[%emt 0:00:00]} 10. Qe2 {[%emt 0:00:00]} h6 {[%emt 0:00:00]} 11. Nc4 {[%emt 0:00:00]} b5 {[%emt 0:01:02]} 12. Ne3 {[%emt 0:00:00]} Nh5 {[%emt 0:01:34]} 13. Rd1 {[%emt 0:04:05]} Nf4 {[%emt 0:00:40]} 14. Qd2 {[%emt 0:03:48]} e5 {[%emt 0:01:35]} 15. Re1 {[%emt 0:07:12]} c4 {[%emt 0:01:38]} 16. Qc3 {[%emt 0:08:45]} cxd3 {[%emt 0:03:35]} 17. Qc5 {[%emt 0:05:01]} dxc2 {[%emt 0:02:36]} 18. Qxc2 {[%emt 0:02:45]} b4 {[%emt 0:02:08]} 19. Bd2 {[%emt 0:03:12]} a5 {[%emt 0:02:31]} 20. Nc4 {[%emt 0:05:29]} Ne6 {[%emt 0:02:08]} 21. Be3 {[%emt 0:03:10]} Nd4 {[%emt 0:00:50]} 22. Qd1 {[%emt 0:04:52]} c5 {[%emt 0:02:29]} 23. Nfd2 {[%emt 0:01:47]} Be6 {[%emt 0:02:58]} 24. Rc1 {[%emt 0:03:07]} Rd7 {[%emt 0:02:53]} 25. Bxd4 {[%emt 0:02:55]} Rxd4 {[%emt 0:02:05]} 26. Qe2 {[%emt 0:02:00]} Rad8 {[%emt 0:03:59]} 27. Nb3 {[%emt 0:03:12]} Bxc4 {[%emt 0:05:37]} 28. Rxc4 {[%emt 0:00:16]} Rxc4 {[%emt 0:00:37]} 29. Qxc4 {[%emt 0:00:41]} Bf8 {[%emt 0:02:27]} 30. Rc1 {[%emt 0:02:29]} Kg7 {[%emt 0:01:26]} 31. Nxc5 {[%emt 0:01:42]} Bxc5 {[%emt 0:00:14]} 32. Qxc5 {[%emt 0:00:10]} Rd1+ {[%emt 0:00:11]} 0-1